bitfinex/quotes_SOLUSD_20251007
["timestamp","ask_amount","ask_price","bid_price","bid_amount"]
[1759860025253,3.31534376,222.66,222.65,11.59647521]
[1759860025475,3.66365688,222.73,222.66,10.87647521]
[1759860025668,3.31512152,222.72,222.67,32.68]
[1759860025857,2.66586749,222.75,222.69,10.87647521]
[1759860025858,3.31512152,222.71,222.69,10.87647521]
[1759860026064,3.31512152,222.7,222.69,10.87647521]
[1759860026288,0.68,222.78,222.69,42.83647521]
[1759860026464,3.31609251,222.77,222.69,42.83647521]
[1759860026672,3.31609251,222.76,222.71,10.87647521]
[1759860026867,3.31609251,222.75,222.73,10.87647521]
[1759860027168,18.42308596,222.88,222.68,70.19863257]
[1759860027169,14.42127195,222.82,222.75,10.87647521]
[1759860027468,3.31654957,222.81,222.77,10.87647521]
[1759860027664,3.31654957,222.8,222.79,10.87647521]
[1759860027865,3.31654957,222.8,222.79,48.00500701]
[1759860028064,3.31608063,222.84,222.8,10.87647521]
[1759860028365,3.31625148,222.83,222.82,10.87647521]
[1759860028577,3.31581372,222.83,222.82,10.87647521]
[1759860029382,3.31581372,222.83,222.78,0.68]
[1759860029693,3.31581372,222.82,222.8,10.87647521]
[1759860029862,5.54648962,222.85,222.8,10.87647521]
[1759860030056,3.31533232,222.84,222.8,15.36479269]
[1759860030383,3.81533232,222.83,222.8,15.36479269]
[1759860030686,3.31533232,222.82,222.8,10.87647521]
[1759860031082,3.31533232,222.81,222.77,10.87647521]
[1759860031276,0.66,222.82,222.8,10.87647521]
[1759860031582,3.313958,222.81,222.8,10.87647521]
[1759860031776,5.54648962,222.82,222.8,10.87647521]
[1759860031992,3.31370741,222.81,222.8,10.87647521]
[1759860032362,3.31370741,222.82,222.8,10.87647521]
[1759860032563,3.31370741,222.81,222.8,10.87647521]
[1759860032873,3.31370741,222.82,222.8,10.87647521]
[1759860033077,3.31370741,222.81,222.78,4.48871591]
[1759860033282,4.98773678,222.83,222.78,36.44871591]
[1759860033468,3.31235895,222.82,222.78,36.44871591]
[1759860033667,3.31235895,222.81,222.78,36.44871591]
[1759860033990,3.31248109,222.8,222.78,32.64]
[1759860034171,1.16,222.83,222.78,37.12869861]
[1759860034512,3.97259552,222.82,222.78,31.96]
[1759860034666,3.31259552,222.81,222.78,36.44871586]
[1759860034976,3.31259552,222.81,222.78,31.96]
[1759860035364,5.54648962,222.81,222.79,10.87647521]
[1759860035677,3.31183173,222.8,222.79,10.87647521]
[1759860035883,3.31183173,222.81,222.79,11.55647521]
[1759860036081,0.5,222.83,222.8,0.68]
[1759860036279,9.37370137,222.86,222.8,0.68]
[1759860036591,3.31214098,222.85,222.8,0.68]
[1759860036887,3.31214098,222.84,222.82,10.87647521]
[1759860037090,21.57182777,222.87,222.82,10.87647521]
[1759860037284,3.97222022,222.86,222.82,10.87647521]
[1759860037471,3.31222022,222.85,222.82,10.87647521]
[1759860037874,3.31222022,222.84,222.82,10.87647521]
[1759860038070,3.31222022,222.84,222.78,31.96]
[1759860038071,3.31097716,222.83,222.79,10.87647521]
[1759860038286,8.43885408,222.82,222.79,10.87647521]
[1759860038474,0.66,222.82,222.79,10.87647521]
[1759860038674,8.27885408,222.83,222.79,10.87647521]
[1759860038893,3.31052755,222.82,222.79,10.87647521]
[1759860039298,4.01052755,222.82,222.79,10.87647521]
[1759860039596,3.31012183,222.81,222.79,10.87647521]
[1759860039773,8.27885408,222.83,222.79,15.36496858]
[1759860039973,3.30982741,222.82,222.79,15.36496858]
[1759860040488,3.30982741,222.82,222.8,0.7]
[1759860040679,13.13297369,222.87,222.81,0.7]
[1759860040993,3.30895884,222.86,222.82,10.87647521]
[1759860041302,3.30895884,222.85,222.82,10.87647521]
[1759860041674,3.30895884,222.85,222.82,15.36432213]
[1759860042377,11.78781292,222.84,222.79,31.67647521]
[1759860042574,4.00895884,222.83,222.8,31.96]
[1759860042778,3.30895884,222.82,222.8,31.96]
[1759860042987,3.30895884,222.82,222.81,10.87647521]
[1759860044821,11.78781292,222.82,222.75,10.87647521]
[1759860044978,7.77885408,222.77,222.75,10.87647521]
[1759860045177,7.77885408,222.78,222.75,10.87647521]
[1759860045375,15.7071116,222.83,222.71,10.87647521]
[1759860045376,7.77885408,222.76,222.71,10.87647521]
[1759860045578,15.7071116,222.83,222.67,11.2271669]
[1759860045579,7.77885408,222.74,222.68,5.19074905]
[1759860045887,8.47885408,222.75,222.7,4.49034575]
[1759860046100,8.47885408,222.75,222.7,5.19034575]
[1759860046398,7.77885408,222.75,222.71,0.7]
[1759860046591,0.7,222.74,222.7,4.49034575]
[1759860046779,0.7,222.74,222.7,10.87647521]
[1759860046980,7.77885408,222.74,222.7,11.57647521]
[1759860047294,7.77885408,222.75,222.7,11.57647521]
[1759860047496,0.7,222.74,222.7,10.87647521]
[1759860047818,0.7,222.79,222.71,0.7]
[1759860048107,7.77885408,222.75,222.69,32.64]
[1759860048333,7.77885408,222.74,222.7,10.87647521]
[1759860048608,7.77885408,222.74,222.7,11.57647521]
[1759860048779,4.4887372,222.78,222.7,10.87647521]
[1759860048980,7.77885408,222.76,222.72,10.87647521]
[1759860049175,3.10423346,222.75,222.7,10.87647521]
[1759860049482,3.80423346,222.75,222.7,11.57647521]
[1759860049689,3.10423346,222.74,222.7,11.57647521]
[1759860050003,3.80423346,222.73,222.7,10.87647521]
[1759860050199,7.59357754,222.75,222.7,10.87647521]
[1759860050384,0.7,222.74,222.7,10.87647521]
[1759860051002,3.3100562,222.73,222.7,10.87647521]
[1759860051801,4.48934408,222.75,222.7,16.06679461]
[1759860051985,3.3102726,222.74,222.7,16.06679461]
[1759860052307,3.3102726,222.74,222.72,10.87647521]
[1759860053391,8.49984464,222.74,222.7,10.87647521]
[1759860053590,3.3102726,222.73,222.7,10.87647521]
[1759860053899,3.10423346,222.72,222.64,21.5]
[1759860054082,11.60485604,222.71,222.65,10.87647521]
[1759860054408,3.30980922,222.7,222.65,10.87647521]
[1759860054702,4.00980922,222.7,222.65,16.06782399]
[1759860054897,3.31273191,222.69,222.65,15.36782399]
[1759860055088,3.31273191,222.69,222.65,16.06782399]
[1759860055296,4.01273191,222.69,222.65,10.87647521]
[1759860055609,3.10423346,222.7,222.65,16.06778778]
[1759860055781,3.31231166,222.69,222.65,16.06778778]
[1759860055985,7.59418264,222.72,222.67,10.87647521]
[1759860056178,3.31296431,222.71,222.67,10.87647521]
[1759860056382,4.01296431,222.71,222.67,10.87647521]
[1759860056579,3.31296431,222.7,222.67,10.87647521]
[1759860056783,3.31296431,222.7,222.68,0.67]
[1759860056992,3.82423346,222.73,222.67,4.49091921]
[1759860057193,3.31314702,222.72,222.67,4.49091921]
[1759860057429,4.03314702,222.72,222.67,0.67]
[1759860057603,4.03314702,222.71,222.65,16.03781377]
[1759860057792,3.31314702,222.7,222.65,16.03781377]
[1759860057993,3.31314702,222.7,222.67,10.87647521]
[1759860058392,3.31314702,222.7,222.67,0.67]
[1759860058587,3.31314702,222.69,222.67,0.67]
[1759860058786,0.5,222.68,222.67,0.67]
[1759860060016,4.48913629,222.76,222.67,16.03742594]
[1759860060200,3.10423346,222.74,222.69,10.87647521]
[1759860060397,6.41953602,222.73,222.69,10.87647521]
[1759860060706,0.72,222.74,222.64,43.16844624]
[1759860060707,3.10423346,222.7,222.64,0.67]
[1759860060907,3.10423346,222.65,222.62,0.1]
[1759860061112,3.82423346,222.64,222.62,0.1]
[1759860061316,6.41548003,222.63,222.62,0.1]
[1759860061494,7.13548003,222.63,222.62,0.1]
[1759860062026,11.62723765,222.63,222.62,0.1]
[1759860062390,8.52300419,222.63,222.62,0.1]
[1759860062594,3.31124657,222.63,222.62,0.1]
[1759860062808,0.72,222.67,222.62,0.77]
[1759860063005,4.03012396,222.66,222.62,0.1]
[1759860063214,7.13431287,222.65,222.62,0.1]
[1759860063517,3.10423346,222.63,222.62,0.1]
[1759860064125,0.5,222.64,222.62,0.1]
[1759860064998,0.5,222.64,222.62,4.59188566]
[1759860065991,3.82423346,222.63,222.62,0.1]
[1759860066601,0.72,222.63,222.62,0.1]
[1759860066799,0.5,222.64,222.62,0.1]
[1759860067005,0.5,222.64,222.62,5.26188275]
[1759860067436,21.36228489,222.66,222.62,5.26188275]
[1759860067721,0.72,222.71,222.63,11.54647521]
[1759860067894,3.30680357,222.7,222.66,15.71903349]
[1759860068098,7.79318574,222.75,222.67,11.54647521]
[1759860068299,3.3076155,222.74,222.67,11.54647521]
[1759860068522,3.3076155,222.74,222.69,10.87647521]
[1759860068729,0.72,222.79,222.7,0.67]
[1759860068936,11.10157412,222.78,222.71,10.87647521]
[1759860069227,3.30838838,222.77,222.72,0.67]
[1759860069398,3.30838838,222.76,222.74,10.87647521]
[1759860069602,3.30838838,222.75,222.74,10.87647521]
[1759860069927,3.30838838,222.77,222.71,10.87647521]
[1759860070098,7.79318574,222.75,222.68,10.87647521]
[1759860070304,11.10157412,222.74,222.68,10.87647521]
[1759860070521,11.10216202,222.73,222.68,10.87647521]
[1759860070822,7.79318574,222.73,222.68,10.87647521]
[1759860071001,7.79318574,222.73,222.67,10.87647521]
[1759860071420,7.79318574,222.72,222.67,10.87647521]
[1759860071639,7.79318574,222.73,222.67,11.54647521]
[1759860071849,0.72,222.75,222.67,11.54647521]
[1759860072020,3.30877604,222.74,222.7,10.87647521]
[1759860072533,3.30877604,222.74,222.67,11.54647521]
[1759860072534,7.79318574,222.73,222.67,11.54647521]
[1759860072736,7.79318574,222.73,222.67,16.03741371]
[1759860072910,0.72,222.77,222.68,0.67]
[1759860073113,7.79318574,222.75,222.68,0.67]
[1759860073328,3.3074756,222.74,222.68,0.67]
[1759860073537,7.79318574,222.76,222.68,0.67]
[1759860073703,3.30803923,222.75,222.68,0.67]
[1759860073904,0.72,222.8,222.68,0.67]
[1759860073905,5.20833436,222.8,222.7,31.67647521]
[1759860074124,3.30818523,222.79,222.72,10.87647521]
[1759860074320,3.80818523,222.78,222.74,10.87647521]
[1759860074644,3.30818523,222.77,222.75,0.67]
[1759860075510,3.30818523,222.77,222.74,10.87647521]
[1759860075823,3.30818523,222.77,222.74,11.54647521]
[1759860076124,3.30818523,222.77,222.74,10.87647521]
[1759860076825,3.30818523,222.77,222.72,10.87647521]
[1759860077028,3.30818523,222.77,222.74,10.87647521]
[1759860077217,3.30818523,222.77,222.74,11.54647521]
[1759860078113,3.30818523,222.77,222.75,0.67]
[1759860078523,3.30818523,222.77,222.74,10.87647521]
[1759860079216,4.98874626,222.78,222.72,10.87647521]
[1759860079422,4.0296643,222.77,222.72,10.87647521]
[1759860079725,12.781932,222.78,222.69,0.67]
[1759860079726,7.79318574,222.75,222.69,0.67]
[1759860079906,7.79318574,222.75,222.7,10.87647521]
[1759860080111,3.3081733,222.74,222.7,11.58647521]
[1759860081219,8.48318574,222.73,222.67,10.87647521]
[1759860081429,3.3081733,222.72,222.67,10.87647521]
[1759860081615,11.79135904,222.72,222.67,10.87647521]
[1759860081814,8.48318574,222.72,222.67,10.87647521]
[1759860082231,7.79318574,222.69,222.63,4.49159678]
[1759860082415,8.48318574,222.69,222.64,10.87647521]
[1759860082810,8.48318574,222.69,222.64,11.58647521]
[1759860083026,8.48318574,222.69,222.64,16.07784707]
[1759860083223,7.79318574,222.68,222.64,10.87647521]
[1759860083514,4.49066237,222.69,222.65,0.71]
[1759860083515,3.30801883,222.67,222.65,0.71]
[1759860083818,4.49022952,222.71,222.64,10.87647521]
[1759860084022,3.30813764,222.7,222.67,10.87647521]
[1759860084215,3.30813764,222.7,222.67,11.58647521]
[1759860084543,0.5,222.69,222.64,10.87647521]
[1759860084712,3.30813764,222.68,222.64,10.87647521]
[1759860084913,4.49095073,222.67,222.62,10.97647521]
[1759860085132,12.78392069,222.69,222.64,10.87647521]
[1759860085444,3.30901789,222.68,222.64,11.58647521]
[1759860086339,3.30901789,222.68,222.66,10.87647521]
[1759860086921,3.30901789,222.68,222.67,0.71]
[1759860087242,7.79318574,222.7,222.68,10.87647521]
[1759860087435,4.49014651,222.71,222.62,32.04]
[1759860087436,3.31137518,222.69,222.67,10.87647521]
[1759860087616,3.31142887,222.68,222.67,11.58647521]
[1759860088018,4.49014651,222.71,222.67,11.58647521]
[1759860088019,3.31142887,222.7,222.67,11.58647521]
[1759860088216,3.31142887,222.69,222.67,11.58647521]
[1759860088526,3.31142887,222.68,222.65,0.71]
[1759860088727,12.28333225,222.71,222.65,0.71]
[1759860088921,3.31322317,222.7,222.67,10.87647521]
[1759860089112,3.31322317,222.69,222.67,10.87647521]
[1759860089318,3.31322317,222.68,222.67,10.87647521]
[1759860089620,3.31322317,222.69,222.65,10.87647521]
[1759860089827,3.31322317,222.68,222.67,10.87647521]
[1759860092018,3.31322317,222.68,222.65,10.87647521]
[1759860092214,3.31684224,222.67,222.65,10.87647521]
[1759860092521,3.31684224,222.66,222.64,10.87647521]
[1759860092825,12.28333304,222.71,222.65,0.71]
[1759860093026,3.31769207,222.7,222.65,0.71]
[1759860093226,3.31769207,222.69,222.67,10.87647521]
[1759860093527,3.31769207,222.68,222.64,10.87647521]
[1759860093747,2.9866127,222.76,222.68,10.87647521]
[1759860093936,3.31875952,222.75,222.68,42.83647521]
[1759860094254,3.31875952,222.74,222.71,10.87647521]
[1759860094455,7.47557698,222.77,222.71,10.87647521]
[1759860094456,3.31875952,222.73,222.71,11.58647521]
[1759860094643,3.31875952,222.72,222.71,10.87647521]
[1759860094844,3.31875952,222.72,222.69,10.87647521]
[1759860095049,3.31875952,222.71,222.7,11.58647521]
[1759860095239,2.9866127,222.76,222.71,10.87647521]
[1759860095438,3.31996927,222.75,222.73,10.87647521]
[1759860095745,3.31996927,222.74,222.69,4.49043985]
[1759860095943,7.4753672,222.78,222.7,10.87647521]
[1759860095944,3.31996927,222.73,222.7,10.87647521]
[1759860096128,7.47684747,222.78,222.72,10.87647521]
[1759860096334,3.3207529,222.77,222.72,11.58647521]
[1759860096639,3.3207529,222.76,222.73,0.71]
[1759860096838,3.3207529,222.75,222.73,0.71]
[1759860097140,3.3207529,222.74,222.69,10.87647521]
[1759860097339,3.3207529,222.73,222.69,10.87647521]
[1759860097532,3.32088399,222.72,222.69,10.87647521]
[1759860097737,16.36069808,222.78,222.71,10.87647521]
[1759860097959,7.79318574,222.76,222.71,10.87647521]
[1759860098137,3.32123736,222.75,222.71,11.58647521]
[1759860098338,3.32123736,222.74,222.72,0.71]
[1759860098533,3.32123736,222.73,222.72,0.71]
[1759860098767,11.1144231,222.73,222.67,21.51]
[1759860098944,3.32123736,222.72,222.69,10.87647521]
[1759860099247,3.32123736,222.71,222.69,10.87647521]
[1759860099436,3.32123736,222.7,222.66,42.81647521]
[1759860099640,3.32123736,222.69,222.67,0.69]
[1759860099841,5.58279542,222.73,222.69,10.87647521]
[1759860100036,3.32130207,222.72,222.69,10.87647521]
[1759860100240,3.32130207,222.71,222.69,11.56647521]
[1759860100437,3.32130207,222.71,222.67,4.49094761]
[1759860100438,3.32130207,222.7,222.67,0.69]
[1759860100640,3.32129928,222.69,222.68,10.87647521]
[1759860100841,3.32129928,222.69,222.68,11.56647521]
[1759860101139,4.48934044,222.75,222.68,11.56647521]
[1759860101339,3.32171209,222.74,222.69,0.69]
[1759860101654,3.32171209,222.73,222.7,10.87647521]
[1759860101860,3.32171209,222.72,222.7,10.87647521]
[1759860102061,0.69,222.75,222.7,10.87647521]
[1759860102062,3.32171209,222.71,222.7,10.87647521]
[1759860102360,3.32171209,222.73,222.7,10.87647521]
[1759860102558,4.89279542,222.74,222.7,10.87647521]
[1759860102559,3.32171209,222.72,222.7,10.87647521]
[1759860102763,3.32171209,222.71,222.7,10.87647521]
[1759860102942,3.32171209,222.74,222.7,10.87647521]
[1759860103144,3.32171209,222.73,222.72,10.87647521]
[1759860103545,3.32171209,222.73,222.72,0.69]
[1759860104153,3.32171209,222.73,222.72,5.17994252]
[1759860104363,2.98971207,222.78,222.73,10.87647521]
[1759860104570,3.32190595,222.77,222.75,10.87647521]
[1759860104771,0.69,222.82,222.76,0.69]
[1759860105078,3.32245784,222.81,222.77,10.87647521]
[1759860105284,13.93004899,222.87,222.79,10.87647521]
[1759860105482,6.31084999,222.86,222.8,32.63]
[1759860105772,3.32143606,222.85,222.81,10.87647521]
[1759860106077,0.69,222.87,222.83,10.87647521]
[1759860106078,3.32143606,222.84,222.83,10.87647521]
[1759860106371,3.32143606,222.86,222.83,10.87647521]
[1759860106542,3.32143606,222.86,222.83,11.56647521]
[1759860106747,3.32143606,222.86,222.83,10.87647521]
[1759860106974,3.32143606,222.85,222.83,10.87647521]
[1759860107178,3.32143606,222.84,222.81,11.56647521]
[1759860107348,2.98962906,222.87,222.83,10.87647521]
[1759860107672,3.31989033,222.86,222.83,10.87647521]
[1759860107968,3.31989033,222.86,222.83,0.69]
[1759860108170,4.48677088,222.88,222.83,0.69]
[1759860108386,3.32010377,222.87,222.83,0.69]
[1759860108680,4.01010377,222.87,222.82,15.36436767]
[1759860108863,3.32010377,222.86,222.83,10.87647521]
[1759860109064,3.32010377,222.86,222.83,11.56647521]
[1759860109277,4.48677088,222.88,222.83,11.56647521]
[1759860109477,3.31865212,222.87,222.83,11.56647521]
[1759860111165,0.69,222.88,222.83,16.054183]
[1759860111567,8.90112162,222.87,222.79,15.36500701]
[1759860111766,8.90099957,222.86,222.81,10.87647521]
[1759860111975,5.58279542,222.86,222.81,10.87647521]
[1759860112272,0.69,222.86,222.81,10.87647521]
[1759860112501,0.69,222.85,222.81,10.87647521]
[1759860112673,4.89279542,222.86,222.81,11.56647521]
[1759860113282,0.69,222.85,222.81,10.87647521]
[1759860113477,4.48711449,222.87,222.81,10.87647521]
[1759860113707,13.37013835,222.9,222.82,0.69]
[1759860113855,3.31664488,222.89,222.82,0.69]
[1759860114265,4.48631992,222.9,222.82,0.69]
[1759860114683,0.69,222.91,222.82,0.69]
[1759860114881,3.31520185,222.9,222.82,0.69]
[1759860115082,0.69,222.94,222.85,10.87647521]
[1759860115291,8.89824806,222.93,222.87,10.87647521]
[1759860115497,3.31545264,222.92,222.87,11.56647521]
[1759860115664,3.31545264,222.92,222.89,10.87647521]
[1759860116661,3.31545264,222.92,222.91,10.87647521]
[1759860116863,5.60279542,222.97,222.91,0.72]
[1759860117057,3.31365989,222.96,222.91,0.72]
[1759860117260,6.29594739,222.96,222.91,0.72]
[1759860117462,4.02365989,222.95,222.88,11.59647521]
[1759860117685,0.71,222.95,222.9,10.87647521]
[1759860117861,0.71,222.95,222.9,11.59647521]
[1759860118482,5.60279542,222.97,222.91,0.72]
[1759860118780,4.02058298,222.96,222.9,10.87647521]
[1759860118985,3.31058298,222.95,222.9,11.59647521]
[1759860119176,3.31058298,222.95,222.91,0.72]
[1759860119356,4.02058298,222.95,222.9,10.87647521]
[1759860119564,9.37898903,222.91,222.83,10.87647521]
[1759860119762,4.89279542,222.93,222.85,10.87647521]
[1759860119997,4.89279542,222.95,222.87,10.87647521]
[1759860120182,18.05948202,222.96,222.89,10.87647521]
[1759860120487,2.34112474,223.0,222.91,10.87647521]
[1759860120692,0.71,223.01,222.93,10.87647521]
[1759860120864,3.30930296,223.0,222.95,10.87647521]
[1759860121064,0.71,222.99,222.93,10.87647521]
[1759860121267,4.89279542,222.95,222.89,20.8]
[1759860121482,4.89279542,222.92,222.9,10.87647521]
[1759860121797,5.60279542,222.92,222.88,10.87647521]
[1759860121967,10.08871548,222.92,222.87,10.87647521]
[1759860122291,4.89279542,222.9,222.87,10.87647521]
[1759860122464,4.48538155,222.95,222.88,0.72]
[1759860122797,5.60279542,222.96,222.88,0.72]
[1759860122972,8.19709106,222.95,222.88,0.72]
[1759860123171,4.89279542,222.95,222.88,0.72]
[1759860123477,6.10279542,222.98,222.9,10.87647521]
[1759860123661,0.5,222.98,222.92,10.87647521]
[1759860123864,0.5,222.98,222.91,0.72]
[1759860123865,8.90630947,222.97,222.91,10.87647521]
[1759860124064,5.60279542,222.97,222.91,10.87647521]
[1759860124781,0.5,222.98,222.92,0.72]
[1759860125094,3.68351639,223.01,222.92,0.72]
[1759860125271,0.71,223.01,222.92,0.72]
[1759860125675,5.19425249,223.01,222.94,10.87647521]
[1759860125988,5.19425249,223.01,222.95,0.72]
[1759860126192,3.30244651,223.0,222.95,0.72]
[1759860126868,4.01244651,223.0,222.95,0.72]
[1759860127194,9.37704791,223.01,222.93,10.87647521]
[1759860127388,3.30045083,223.0,222.97,10.87647521]
[1759860127588,3.30045083,223.0,222.92,4.48578982]
[1759860127589,4.01045083,223.0,222.95,10.87647521]
[1759860127897,5.19437062,223.0,222.95,11.59647521]
[1759860128596,4.89279542,222.97,222.92,10.87647521]
[1759860128770,0.71,222.99,222.93,0.72]
[1759860129281,5.60279542,222.99,222.94,10.87647521]
[1759860129482,4.89279542,222.99,222.92,10.87647521]
[1759860129784,4.89279542,222.99,222.92,11.59647521]
[1759860129989,10.08736286,222.99,222.92,16.08221045]
[1759860130194,4.89279542,222.98,222.92,16.08221045]
[1759860130496,10.08736286,222.99,222.92,15.36221045]
[1759860130698,20.8,223.03,222.94,10.87647521]
[1759860131002,3.29998387,223.02,222.95,0.72]
[1759860131172,0.71,223.06,222.95,0.72]
[1759860131372,4.89279542,223.04,222.98,10.87647521]
[1759860131568,0.71,223.06,222.98,11.59647521]
[1759860131773,8.19225372,223.05,222.98,11.59647521]
[1759860132000,8.19225372,223.04,223.0,10.87647521]
[1759860132204,0.2,223.07,223.02,10.87647521]
[1759860132524,5.80279542,223.07,223.0,10.87647521]
[1759860132702,4.89279542,223.06,223.0,10.87647521]
[1759860133868,0.5,223.04,223.0,10.87647521]
[1759860134096,0.5,223.04,223.01,0.72]
[1759860134290,0.2,223.07,223.0,10.87647521]
[1759860134476,5.60279542,223.06,223.0,11.59647521]
[1759860134883,4.89279542,223.06,223.0,11.59647521]
[1759860135085,9.57572131,223.07,223.01,0.72]
[1759860135396,4.89279542,223.06,223.01,0.72]
[1759860135597,10.28572131,223.07,223.01,0.72]
[1759860135988,4.89279542,223.06,223.01,0.72]
[1759860136188,9.37597679,223.06,223.01,0.72]
[1759860136599,0.71,223.05,223.0,10.87647521]
[1759860136800,4.89279542,223.01,223.0,10.87647521]
[1759860137105,5.60279542,223.01,222.95,32.62]
[1759860137299,4.89279542,222.98,222.96,10.87647521]
[1759860139007,4.89279542,222.98,222.95,10.87647521]
[1759860139008,0.5,222.97,222.95,10.87647521]
[1759860139518,5.60279542,222.96,222.91,42.77647521]
[1759860139713,0.71,222.95,222.91,10.87647521]
[1759860140015,4.89279542,222.93,222.89,39.43647521]
[1759860140410,4.89279542,222.93,222.86,0.72]
[1759860140411,4.89279542,222.91,222.86,0.72]
[1759860140619,4.89279542,222.91,222.87,0.72]
[1759860140796,4.89279542,222.91,222.88,10.87647521]
[1759860140992,4.89279542,222.91,222.86,10.87647521]
[1759860141293,4.89279542,222.89,222.86,10.87647521]
[1759860141513,5.60279542,222.9,222.85,10.87647521]
[1759860141694,5.60279542,222.9,222.85,11.59647521]
[1759860141899,10.08925218,222.9,222.85,11.59647521]
[1759860142120,5.60279542,222.89,222.82,0.72]
[1759860142417,5.60279542,222.89,222.71,25.86608897]
[1759860142418,4.89279542,222.85,222.79,32.64]
[1759860142623,15.70224859,222.9,222.8,10.87647521]
[1759860142624,4.89279542,222.84,222.8,10.87647521]
[1759860142798,0.71,222.83,222.8,10.87647521]
[1759860143125,4.89279542,222.81,222.75,0.72]
[1759860143298,4.89279542,222.8,222.75,0.72]
[1759860143499,4.89279542,222.82,222.76,0.72]
[1759860143713,8.19554312,222.81,222.76,0.72]
[1759860143919,4.89279542,222.82,222.77,0.72]
[1759860144122,4.89279542,222.81,222.75,10.87647521]
[1759860144423,4.89279542,222.8,222.75,10.87647521]
[1759860144597,4.89279542,222.8,222.75,15.36579567]
[1759860144920,13.19219186,222.86,222.76,0.72]
[1759860145223,4.89279542,222.84,222.76,0.72]
[1759860145396,3.30421746,222.83,222.76,0.72]
[1759860145928,4.89279542,222.87,222.77,4.48893477]
[1759860146104,3.30633396,222.86,222.78,11.59647521]
[1759860146302,3.30633396,222.86,222.8,10.87647521]
[1759860146709,3.30633396,222.86,222.8,11.59647521]
[1759860146924,3.30633396,222.85,222.8,11.59647521]
[1759860147123,3.30633396,222.85,222.82,10.87647521]
[1759860147320,4.89279542,222.86,222.82,0.72]
[1759860147619,3.3097895,222.85,222.82,10.87647521]
[1759860147807,3.3097895,222.85,222.82,15.36432558]
[1759860148134,3.3097895,222.85,222.82,10.87647521]
[1759860148315,8.89258492,222.85,222.82,10.87647521]
[1759860148500,3.3097895,222.84,222.82,10.87647521]
[1759860148702,8.20258492,222.84,222.8,5.20816579]
[1759860149024,4.89279542,222.84,222.8,4.48816579]
[1759860149325,3.31134696,222.83,222.81,10.87647521]
[1759860149705,3.31134696,222.83,222.82,0.72]
[1759860149903,9.37973449,222.87,222.83,10.87647521]
[1759860150100,8.89497979,222.86,222.8,10.87647521]
[1759860150441,3.31218437,222.85,222.84,10.87647521]
[1759860150918,8.89497979,222.85,222.84,10.87647521]
[1759860151424,8.89497979,222.85,222.79,5.2084924]
[1759860151425,4.48752468,222.84,222.82,20.8]
[1759860151623,8.89497979,222.83,222.82,20.8]
[1759860152002,3.31218437,222.83,222.82,31.67647521]
[1759860152348,3.31218437,222.83,222.82,10.87647521]
[1759860152576,8.20497979,222.85,222.82,31.67647521]
[1759860152823,5.17551179,222.94,222.89,20.8]
[1759860153025,8.20626436,222.93,222.89,20.8]
[1759860153228,4.89279542,222.91,222.89,20.8]
[1759860153417,5.58279542,222.91,222.89,20.8]
[1759860153616,3.31356322,222.9,222.89,36.16299322]
[1759860153834,35.52463773,223.01,222.89,31.67647521]
[1759860154036,0.69,222.92,222.89,31.67647521]
[1759860154338,13.87089396,222.96,222.9,11.59647521]
[1759860154536,3.3139785,222.95,222.9,11.59647521]
[1759860154740,3.3139785,222.95,222.92,10.87647521]
[1759860154939,8.89677392,222.95,222.92,10.87647521]
[1759860155143,4.89279542,222.94,222.9,10.87647521]
[1759860155338,4.89279542,222.95,222.9,11.59647521]
[1759860155539,2.9820543,222.99,222.9,11.59647521]
[1759860155540,3.31472096,222.94,222.92,10.87647521]
[1759860155735,5.58279542,222.97,222.92,10.87647521]
[1759860155941,3.31492661,222.96,222.94,10.87647521]
[1759860156140,13.98958169,223.0,222.96,10.87647521]
[1759860156141,13.29958169,223.0,222.96,10.87647521]
[1759860156372,3.31556911,222.99,222.96,10.87647521]
[1759860156535,4.89279542,222.97,222.95,10.87647521]
[1759860156946,4.89279542,222.96,222.94,10.87647521]
[1759860157134,8.89790529,222.95,222.89,42.87647521]
[1759860157457,4.89279542,222.92,222.89,42.87647521]
[1759860157832,11.21196027,222.98,222.87,0.72]
[1759860157833,4.89279542,222.91,222.87,0.72]
[1759860158033,4.89279542,222.91,222.88,10.87647521]
[1759860158252,5.58279542,222.91,222.88,10.87647521]
[1759860158455,4.89279542,222.91,222.88,10.87647521]
[1759860159446,4.89279542,222.93,222.89,0.7]
[1759860159760,4.89279542,222.93,222.87,15.36338347]
[1759860160151,4.48497192,222.97,222.88,0.7]
[1759860160353,4.89279542,222.94,222.88,0.7]